fUSD/lending_fUSD_20240611
["ID","MTS","AMOUNT","RATE_DAILY","PERIOD"]
[329123320,1718124640284,-500.0,0.00021917,2]
[329123322,1718124640295,-500.0,0.00021917,2]
[329123324,1718124640305,-500.0,0.00021917,2]
[329123326,1718124640315,-513.03627354,0.00021917,2]
[329123328,1718124640326,-500.0,0.00021917,2]
[329123330,1718124640337,-666.67,0.00021917,2]
[329123331,1718124640347,-500.0,0.00021917,2]
[329123334,1718124640357,-500.0,0.00021917,2]
[329123336,1718124640368,-732.1,0.00021917,2]
[329123338,1718124640379,-151.0,0.00021917,2]
[329123340,1718124640389,-500.0,0.00021917,2]
[329123342,1718124640399,-823.38,0.00021917,2]
[329123344,1718124640412,-500.0,0.00021917,2]
[329123345,1718124640427,-500.0,0.00021917,2]
[329123346,1718124640439,-500.0,0.00021917,2]
[329123347,1718124640449,-151.0,0.00021917,2]
[329123348,1718124640462,-1064.41,0.00021917,2]
[329123349,1718124640476,-552.93,0.00021917,2]
[329123350,1718124640487,-500.0,0.00021917,2]
[329123351,1718124640499,-500.0,0.00021917,2]
[329123352,1718124640509,-500.0,0.00021917,2]
[329123353,1718124640519,-528.61,0.00021917,2]
[329123354,1718124640529,-512.73,0.00021917,2]
[329123356,1718124640539,-500.0,0.00021917,2]
[329123357,1718124640549,-500.0,0.00021917,2]
[329123359,1718124640560,-500.0,0.00021917,2]
[329123362,1718124640571,-500.0,0.00021917,2]
[329123363,1718124640582,-500.0,0.00021917,2]
[329123365,1718124640593,-500.0,0.00021917,2]
[329123367,1718124640604,-500.0,0.00021917,2]
[329123369,1718124640616,-500.0,0.00021917,2]
[329123371,1718124640626,-500.0,0.00021917,2]
[329123373,1718124640636,-906.89,0.00021917,2]
[329123375,1718124640647,-500.0,0.00021917,2]
[329123377,1718124640658,-500.0,0.00021917,2]
[329123379,1718124640668,-500.0,0.00021917,2]
[329123381,1718124640679,-500.0,0.00021917,2]
[329123383,1718124640689,-500.0,0.00021917,2]
[329123385,1718124640700,-388.21511958,0.00021917,2]
[329123387,1718124640710,-164.899962,0.00021917,2]
[329123389,1718124640722,-500.0,0.00021917,2]
[329123391,1718124640734,-500.0,0.00021917,2]
[329123393,1718124640745,-500.0,0.00021917,2]
[329123395,1718124640754,-500.0,0.00021917,2]
[329123397,1718124640765,-500.0,0.00021917,2]
[329123399,1718124640775,-500.0,0.00021917,2]
[329123401,1718124640786,-500.0,0.00021917,2]
[329123403,1718124640796,-500.0,0.00021917,2]
[329123405,1718124640806,-500.0,0.00021917,2]
[329123407,1718124640816,-500.0,0.00021917,2]
[329123409,1718124640826,-292.64530582,0.00021917,2]
[329123411,1718124640837,-500.0,0.00021917,2]
[329123413,1718124640847,-500.0,0.00021917,2]
[329123415,1718124640857,-500.0,0.00021917,2]
[329123417,1718124640868,-1397.13,0.00021917,2]
[329123419,1718124640878,-500.0,0.00021917,2]
[329123421,1718124640888,-500.0,0.00021917,2]
[329123423,1718124640898,-533.97508717,0.00021917,2]
[329123425,1718124640908,-567.55634145,0.00021917,2]
[329123427,1718124640918,-500.0,0.00021917,2]
[329123429,1718124640929,-677.92,0.00021917,2]
[329123431,1718124640939,-1502.14,0.00021917,2]
[329123433,1718124640949,-535.19863682,0.00021917,2]
[329123458,1718124640959,-500.0,0.00021917,2]
[329123461,1718124641216,-551.84681049,0.00021917,2]
[329123463,1718124641233,-500.0,0.00021917,2]
[329123465,1718124641242,-500.0,0.00021917,2]
[329123467,1718124641254,-1271.65,0.00021917,2]
[329123469,1718124641264,-575.26,0.00021917,2]
[329123471,1718124641273,-500.0,0.00021917,2]
[329123473,1718124641283,-530.25624817,0.00021917,2]
[329123475,1718124641293,-500.0,0.00021917,2]
[329123477,1718124641303,-542.80479754,0.00021917,2]
[329123479,1718124641313,-2000.0,0.00021917,2]
[329123481,1718124641324,-1138.77,0.00021917,2]
[329123483,1718124641334,-151.0,0.00021917,2]
[329123485,1718124641344,-500.0,0.00021917,2]
[329123487,1718124641355,-500.0,0.00021917,2]
[329123489,1718124641364,-529.9722669,0.00021917,2]
[329123491,1718124641374,-151.0,0.00021917,2]
[329123493,1718124641384,-200.0,0.00021917,2]
[329123495,1718124641394,-525.07901113,0.00021917,2]
[329123497,1718124641405,-500.0,0.00021917,2]
[329123499,1718124641421,-787.95,0.00021917,2]
[329123501,1718124641432,-1478.04,0.00021917,2]
[329123503,1718124641443,-405.77251052,0.00021917,2]
[329123505,1718124641455,-500.0,0.00021917,2]
[329123507,1718124641466,-500.0,0.00021917,2]
[329123509,1718124641486,-522.25074498,0.00021917,2]
[329123511,1718124641498,-500.0,0.00021917,2]
[329123513,1718124641510,-955.72,0.00021917,2]
[329123515,1718124641520,-500.0,0.00021917,2]
[329123517,1718124641531,-692.38,0.00021917,2]
[329123519,1718124641542,-512.93676593,0.00021917,2]
[329123521,1718124641552,-500.0,0.00021917,2]
[329123523,1718124641564,-500.0,0.00021917,2]
[329123525,1718124641574,-500.0,0.00021917,2]
[329123527,1718124641585,-500.0,0.00021917,2]
[329123529,1718124641595,-892.6,0.00021917,2]
[329123531,1718124641605,-500.0,0.00021917,2]
[329123533,1718124641615,-162.43493661,0.00021917,2]
[329123535,1718124641626,-878.69,0.00021917,2]
[329123537,1718124641637,-463.88519235,0.00021917,2]
[329123539,1718124641646,-500.0,0.00021917,2]
[329123541,1718124641656,-527.32746304,0.00021917,2]
[329123543,1718124641665,-724.4,0.00021917,2]
[329123545,1718124641676,-500.0,0.00021917,2]
[329123547,1718124641686,-500.0,0.00021917,2]
[329123549,1718124641696,-787.15,0.00021917,2]
[329123551,1718124641707,-500.0,0.00021917,2]
[329123553,1718124641718,-743.17,0.00021917,2]
[329123555,1718124641734,-1169.19,0.00021917,2]
[329123557,1718124641745,-500.0,0.00021917,2]
[329123559,1718124641755,-500.0,0.00021917,2]
[329123561,1718124641766,-384.80027406,0.00021917,2]
[329123563,1718124641777,-658.33,0.00021917,2]
[329123565,1718124641788,-590.43,0.00021917,2]
[329123567,1718124641798,-500.0,0.00021917,2]
[329123569,1718124641808,-500.0,0.00021917,2]
[329123571,1718124641819,-1348.42,0.00021917,2]
[329123573,1718124641829,-1307.37,0.00021917,2]
[329123575,1718124641841,-500.0,0.00021917,2]
[329123577,1718124641852,-500.0,0.00021917,2]
[329123579,1718124641864,-552.73,0.00021917,2]
[329123581,1718124641874,-1429.21,0.00021917,2]
[329123583,1718124641885,-591.15,0.00021917,2]
[329123585,1718124641895,-981.11387354,0.00021917,2]
[329123587,1718124641905,-500.0,0.00021917,2]
[329123589,1718124641916,-516.28125047,0.00021917,2]
[329123591,1718124641927,-500.0,0.00021917,2]
[329123593,1718124641938,-500.0,0.00021917,2]
[329123595,1718124641950,-500.0,0.00021917,2]
[329123597,1718124641960,-500.0,0.00021917,2]
[329123599,1718124641976,-500.0,0.00021917,2]
[329123601,1718124641988,-1314.06,0.00021917,2]
[329123603,1718124641999,-500.0,0.00021917,2]
[329123605,1718124642010,-500.0,0.00021917,2]
[329123607,1718124642021,-500.0,0.00021917,2]
[329123609,1718124642031,-2276.83,0.00021917,2]
[329123611,1718124642042,-500.0,0.00021917,2]
[329123612,1718124642053,-500.95,0.00021917,2]
[329123614,1718124642064,-616.53,0.00021917,2]
[329123617,1718124642076,-500.0,0.00021917,2]
[329123618,1718124642086,-1658.22,0.00021917,2]
[329123620,1718124642097,-500.0,0.00021917,2]
[329123622,1718124642109,-500.0,0.00021917,2]
[329123625,1718124642119,-500.0,0.00021917,2]
[329123626,1718124642129,-500.0,0.00021917,2]
[329123628,1718124642140,-500.0,0.00021917,2]
[329123631,1718124642151,-500.0,0.00021917,2]
[329123632,1718124642161,-300.783705,0.00021917,2]
[329123634,1718124642180,-500.0,0.00021917,2]
[329123636,1718124642191,-1047.76,0.00021917,2]
[329123638,1718124642203,-164.167133,0.00021917,2]
[329123640,1718124642215,-515.19444625,0.00021917,2]
[329123642,1718124642232,-1064.36,0.00021917,2]
[329123644,1718124642244,-500.0,0.00021917,2]
[329123646,1718124642256,-500.0,0.00021917,2]
[329123648,1718124642267,-500.0,0.00021917,2]
[329123650,1718124642279,-1109.39,0.00021917,2]
[329123652,1718124642290,-660.31,0.00021917,2]
[329123654,1718124642301,-500.0,0.00021917,2]
[329123656,1718124642313,-529.08,0.00021917,2]
[329123658,1718124642325,-500.0,0.00021917,2]
[329123660,1718124642336,-500.0,0.00021917,2]
[329123662,1718124642348,-500.0,0.00021917,2]
[329123664,1718124642359,-151.0,0.00021917,2]
[329123666,1718124642370,-500.0,0.00021917,2]
[329123668,1718124642380,-500.0,0.00021917,2]
[329123670,1718124642391,-500.0,0.00021917,2]
[329123672,1718124642404,-500.0,0.00021917,2]
[329123674,1718124642419,-694.62,0.00021917,2]
[329123676,1718124642431,-500.0,0.00021917,2]
[329123678,1718124642442,-500.0,0.00021917,2]
[329123680,1718124642452,-154.169494,0.00021917,2]
[329123682,1718124642463,-500.0,0.00021917,2]
[329123684,1718124642481,-2739.47,0.00021917,2]
[329123686,1718124642493,-1057.68,0.00021917,2]
[329123688,1718124642504,-500.0,0.00021917,2]
[329123690,1718124642515,-2043.65,0.00021917,2]
[329123692,1718124642525,-154.169494,0.00021917,2]
[329123694,1718124642536,-151.0,0.00021917,2]
[329123696,1718124642547,-837.06,0.00021917,2]
[329123698,1718124642557,-500.0,0.00021917,2]
[329123700,1718124642568,-500.0,0.00021917,2]
[329123702,1718124642578,-155.59710243,0.00021917,2]
[329123704,1718124642589,-457.07041033,0.00021917,2]
[329123706,1718124642600,-642.19482965,0.00021917,2]
[329123708,1718124642610,-500.0,0.00021917,2]
[329123710,1718124642621,-500.0,0.00021917,2]
[329123712,1718124642632,-500.0,0.00021917,2]
[329123714,1718124642644,-616.4,0.00021917,2]
[329123716,1718124642655,-2790.56,0.00021917,2]
[329123718,1718124642665,-500.0,0.00021917,2]
[329123720,1718124642676,-500.0,0.00021917,2]
[329123722,1718124642686,-929.68,0.00021917,2]
[329123724,1718124642696,-2686.38,0.00021917,2]
[329123726,1718124642706,-500.0,0.00021917,2]
[329123728,1718124642717,-500.0,0.00021917,2]
[329123730,1718124642731,-500.0,0.00021917,2]
[329123732,1718124642741,-500.0,0.00021917,2]
[329123734,1718124642752,-500.0,0.00021917,2]
[329123736,1718124642762,-1752.78,0.00021917,2]
[329123738,1718124642772,-1253.16,0.00021917,2]
[329123740,1718124642784,-507.44387402,0.00021917,2]
[329123742,1718124642795,-502.55,0.00021917,2]
[329123744,1718124642806,-500.0,0.00021917,2]
[329123746,1718124642817,-799.53,0.00021917,2]
[329123748,1718124642828,-500.0,0.00021917,2]
[329123750,1718124642839,-500.0,0.00021917,2]
[329123753,1718124642851,-1273.93,0.00021917,2]
[329123754,1718124642862,-500.0,0.00021917,2]
[329123757,1718124642873,-785.95,0.00021917,2]
[329123759,1718124642883,-500.0,0.00021917,2]
[329123760,1718124642894,-326.87338769,0.00021917,2]
[329123761,1718124642904,-500.0,0.00021917,2]
[329123762,1718124642915,-695.43,0.00021917,2]
[329123763,1718124642926,-724.9,0.00021917,2]
[329123764,1718124642937,-552.01,0.00021917,2]
[329123765,1718124642948,-504.34468973,0.00021917,2]
[329123766,1718124642958,-500.0,0.00021917,2]
[329123767,1718124642973,-507.00885591,0.00021917,2]
[329123769,1718124642985,-500.0,0.00021917,2]
[329123771,1718124642996,-516.03562867,0.00021917,2]
[329123773,1718124643007,-500.0,0.00021917,2]
[329123775,1718124643018,-500.0,0.00021917,2]
[329123777,1718124643029,-500.0,0.00021917,2]
[329123779,1718124643040,-500.0,0.00021917,2]
[329123781,1718124643051,-968.95,0.00021917,2]
[329123783,1718124643062,-500.0,0.00021917,2]
[329123785,1718124643073,-500.0,0.00021917,2]
[329123787,1718124643084,-500.0,0.00021917,2]
[329123789,1718124643095,-1084.49,0.00021917,2]
[329123791,1718124643105,-500.0,0.00021917,2]
[329123793,1718124643116,-536.98,0.00021917,2]
[329123795,1718124643126,-151.0,0.00021917,2]
[329123797,1718124643137,-500.0,0.00021917,2]
[329123799,1718124643148,-500.0,0.00021917,2]
[329123801,1718124643158,-530.07558012,0.00021917,2]
[329123803,1718124643176,-500.0,0.00021917,2]
[329123805,1718124643188,-982.09,0.00021917,2]
[329123807,1718124643199,-500.0,0.00021917,2]
[329123809,1718124643209,-500.0,0.00021917,2]
[329123811,1718124643223,-500.0,0.00021917,2]
[329123813,1718124643234,-500.0,0.00021917,2]
[329123815,1718124643246,-151.0,0.00021917,2]
[329123817,1718124643256,-500.0,0.00021917,2]
[329123819,1718124643267,-1564.41,0.00021917,2]
[329123821,1718124643277,-500.0,0.00021917,2]
[329123824,1718124643288,-500.0,0.00021917,2]
[329123827,1718124643299,-657.1,0.00021917,2]
[329123830,1718124643309,-500.0,0.00021917,2]
[329123833,1718124643321,-500.0,0.00021917,2]
[329123835,1718124643331,-1373.09,0.00021917,2]
[329123837,1718124643343,-849.07,0.00021917,2]
[329123840,1718124643354,-645.5,0.00021917,2]
[329123843,1718124643365,-500.0,0.00021917,2]
[329123846,1718124643377,-500.0,0.00021917,2]
[329123848,1718124643388,-500.0,0.00021917,2]
[329123850,1718124643398,-1097.09,0.00021917,2]
[329123852,1718124643409,-679.06,0.00021917,2]
[329123854,1718124643419,-546.7380562,0.00021917,2]
[329123856,1718124643434,-890.87,0.00021917,2]
[329123858,1718124643445,-817.49,0.00021917,2]
[329123860,1718124643456,-151.0,0.00021917,2]
[329123862,1718124643466,-509.1611118,0.00021917,2]
[329123864,1718124643481,-548.6,0.00021917,2]
[329123866,1718124643491,-204.58711218,0.00021917,2]
[329123868,1718124643503,-1425.09,0.00021917,2]
[329123870,1718124643513,-212.11124298,0.00021917,2]
[329123872,1718124643523,-1168.64,0.00021917,2]
[329123874,1718124643534,-500.0,0.00021917,2]
[329123877,1718124643544,-1038.16,0.00021917,2]
[329123879,1718124643555,-802.71,0.00021917,2]
[329123881,1718124643565,-500.0,0.00021917,2]
[329123883,1718124643577,-158.913245,0.00021917,2]
[329123885,1718124643588,-500.0,0.00021917,2]
[329123887,1718124643598,-1137.43,0.00021917,2]
[329123889,1718124643609,-938.43,0.00021917,2]
[329123891,1718124643619,-1721.51,0.00021917,2]
[329123893,1718124643630,-283.44499639,0.00021917,2]
[329123895,1718124643640,-500.0,0.00021917,2]
[329123897,1718124643651,-158.913245,0.00021917,2]
[329123899,1718124643663,-2046.66,0.00021917,2]
[329123901,1718124643673,-529.38,0.00021917,2]
[329123903,1718124643684,-796.01,0.00021917,2]
[329123905,1718124643694,-500.0,0.00021917,2]
[329123907,1718124643705,-500.0,0.00021917,2]
[329123909,1718124643716,-500.0,0.00021917,2]
[329123911,1718124643729,-945.77,0.00021917,2]
[329123913,1718124643740,-1181.25,0.00021917,2]
[329123915,1718124643750,-2270.34,0.00021917,2]
[329123917,1718124643760,-500.0,0.00021917,2]
[329123919,1718124643770,-500.0,0.00021917,2]
[329123921,1718124643780,-619.60727876,0.00021917,2]
[329123923,1718124643791,-638.25,0.00021917,2]
[329123925,1718124643801,-500.0,0.00021917,2]
[329123927,1718124643811,-950.59,0.00021917,2]
[329123929,1718124643822,-1190.74,0.00021917,2]
[329123931,1718124643832,-607.47,0.00021917,2]
[329123933,1718124643844,-397.69010374,0.00021917,2]
[329123935,1718124643855,-885.97,0.00021917,2]
[329123937,1718124643865,-500.0,0.00021917,2]
[329123939,1718124643875,-541.92,0.00021917,2]
[329123941,1718124643885,-529.02,0.00021917,2]
[329123943,1718124643896,-500.0,0.00021917,2]
[329123945,1718124643906,-500.0,0.00021917,2]
[329123947,1718124643917,-1012.18,0.00021917,2]
[329123949,1718124643927,-1695.75,0.00021917,2]
[329123951,1718124643938,-573.09,0.00021917,2]
[329123953,1718124643948,-159.32423,0.00021917,2]
[329123955,1718124643958,-522.83707695,0.00021917,2]
[329123957,1718124643968,-500.0,0.00021917,2]
[329123959,1718124643980,-159.32423,0.00021917,2]
[329123961,1718124643990,-928.38,0.00021917,2]
[329123963,1718124643999,-500.0,0.00021917,2]
[329123965,1718124644009,-1157.85,0.00021917,2]
[329123967,1718124644019,-500.0,0.00021917,2]
[329123969,1718124644028,-500.0,0.00021917,2]
[329123971,1718124644038,-774.2,0.00021917,2]
[329123973,1718124644048,-876.37,0.00021917,2]
[329123975,1718124644058,-500.0,0.00021917,2]
[329123977,1718124644068,-500.0,0.00021917,2]
[329123979,1718124644078,-500.0,0.00021917,2]
[329123981,1718124644088,-619.88,0.00021917,2]
[329123983,1718124644099,-500.0,0.00021917,2]
[329123985,1718124644109,-554.72,0.00021917,2]
[329123987,1718124644119,-500.0,0.00021917,2]
[329123989,1718124644129,-500.0,0.00021917,2]
[329123991,1718124644139,-500.0,0.00021917,2]
[329123993,1718124644149,-500.0,0.00021917,2]
[329123995,1718124644160,-541.08697991,0.00021917,2]
[329123997,1718124644176,-500.0,0.00021917,2]
[329123999,1718124644187,-1337.05,0.00021917,2]
[329124001,1718124644197,-500.0,0.00021917,2]
[329124003,1718124644208,-500.0,0.00021917,2]
[329124005,1718124644218,-500.0,0.00021917,2]
[329124007,1718124644231,-602.91,0.00021917,2]
[329124009,1718124644242,-500.0,0.00021917,2]
[329124011,1718124644253,-500.0,0.00021917,2]
[329124013,1718124644263,-500.0,0.00021917,2]
[329124015,1718124644274,-500.0,0.00021917,2]
[329124017,1718124644285,-535.86,0.00021917,2]
[329124019,1718124644295,-500.0,0.00021917,2]
[329124021,1718124644306,-1149.72,0.00021917,2]
[329124023,1718124644316,-1007.82,0.00021917,2]
[329124025,1718124644327,-772.02,0.00021917,2]
[329124027,1718124644337,-500.0,0.00021917,2]
[329124029,1718124644347,-500.0,0.00021917,2]
[329124031,1718124644358,-500.0,0.00021917,2]
[329124033,1718124644368,-500.0,0.00021917,2]
[329124035,1718124644379,-548.13,0.00021917,2]
[329124037,1718124644389,-500.0,0.00021917,2]
[329124039,1718124644400,-500.0,0.00021917,2]
[329124041,1718124644411,-500.0,0.00021917,2]
[329124043,1718124644426,-500.0,0.00021917,2]
[329124045,1718124644436,-993.89,0.00021917,2]
[329124047,1718124644446,-500.0,0.00021917,2]
[329124049,1718124644458,-500.0,0.00021917,2]
[329124051,1718124644468,-500.0,0.00021917,2]
[329124053,1718124644483,-500.0,0.00021917,2]
[329124055,1718124644494,-517.00375679,0.00021917,2]
[329124057,1718124644504,-500.0,0.00021917,2]
[329124059,1718124644515,-500.0,0.00021917,2]
[329124061,1718124644526,-1541.14,0.00021917,2]
[329124063,1718124644536,-2253.37,0.00021917,2]
[329124065,1718124644547,-500.0,0.00021917,2]
[329124067,1718124644557,-535.49,0.00021917,2]
[329124069,1718124644571,-500.0,0.00021917,2]
[329124071,1718124644582,-844.76,0.00021917,2]
[329124073,1718124644593,-500.0,0.00021917,2]
[329124075,1718124644604,-165.025997,0.00021917,2]
[329124077,1718124644616,-500.0,0.00021917,2]
[329124079,1718124644628,-500.0,0.00021917,2]
[329124081,1718124644639,-500.0,0.00021917,2]
[329124083,1718124644650,-513.60070632,0.00021917,2]
[329124085,1718124644661,-681.99,0.00021917,2]
[329124088,1718124644675,-151.0,0.00021917,2]
[329124090,1718124644686,-500.0,0.00021917,2]
[329124092,1718124644698,-500.0,0.00021917,2]
[329124094,1718124644711,-1263.03,0.00021917,2]
[329124097,1718124644739,-1152.64,0.00021917,2]
[329124099,1718124644750,-631.91,0.00021917,2]
[329124101,1718124644761,-151.0,0.00021917,2]
[329124103,1718124644772,-500.0,0.00021917,2]
[329124105,1718124644782,-2000.0,0.00021917,2]
[329124107,1718124644793,-1000.48,0.00021917,2]
[329124109,1718124644803,-500.0,0.00021917,2]
[329124111,1718124644814,-500.0,0.00021917,2]
[329124113,1718124644826,-500.0,0.00021917,2]
[329124115,1718124644837,-151.0,0.00021917,2]
[329124117,1718124644848,-221.68918,0.00021917,2]
[329124119,1718124644859,-603.32,0.00021917,2]
[329124121,1718124644870,-837.91,0.00021917,2]
[329124123,1718124644882,-200.0,0.00021917,2]
[329124126,1718124644893,-500.0,0.00021917,2]
[329124128,1718124644904,-196.57103536,0.00021917,2]
[329124130,1718124644914,-2452.11,0.00021917,2]
[329124132,1718124644926,-515.51514529,0.00021917,2]
[329124134,1718124644937,-500.0,0.00021917,2]
[329124136,1718124644948,-221.68918,0.00021917,2]
[329124138,1718124644959,-513.54,0.00021917,2]
[329124140,1718124644970,-506.1565305,0.00021917,2]
[329124142,1718124644987,-500.0,0.00021917,2]
[329124144,1718124644998,-2360.8,0.00021917,2]
[329124146,1718124645008,-500.0,0.00021917,2]
[329124148,1718124645018,-500.0,0.00021917,2]
[329124150,1718124645028,-570.18,0.00021917,2]
[329124152,1718124645039,-500.0,0.00021917,2]
[329124154,1718124645050,-214.583815,0.00021917,2]
[329124156,1718124645060,-500.0,0.00021917,2]
[329124158,1718124645071,-520.61605053,0.00021917,2]
[329124160,1718124645082,-150.05238836,0.00021917,2]
[329124162,1718124645093,-214.583815,0.00021917,2]
[329124164,1718124645104,-500.0,0.00021917,2]
[329124165,1718124645115,-500.0,0.00021917,2]
[329124166,1718124645126,-1381.08,0.00021917,2]
[329124167,1718124645137,-500.0,0.00021917,2]
[329124168,1718124645147,-500.0,0.00021917,2]
[329124169,1718124645157,-500.0,0.00021917,2]
[329124170,1718124645170,-151.0,0.00021917,2]
[329124171,1718124645187,-500.0,0.00021917,2]
[329124173,1718124645199,-790.33,0.00021917,2]
[329124175,1718124645210,-500.0,0.00021917,2]
[329124177,1718124645223,-500.0,0.00021917,2]
[329124179,1718124645239,-1639.53,0.00021917,2]
[329124181,1718124645250,-397.79152798,0.00021917,2]
[329124183,1718124645261,-1174.16,0.00021917,2]
[329124185,1718124645272,-500.0,0.00021917,2]
[329124187,1718124645284,-500.0,0.00021917,2]
[329124189,1718124645294,-852.46,0.00021917,2]
[329124191,1718124645306,-500.0,0.00021917,2]
[329124193,1718124645317,-500.0,0.00021917,2]
[329124195,1718124645328,-1741.95,0.00021917,2]
[329124197,1718124645338,-151.0,0.00021917,2]
[329124199,1718124645349,-500.0,0.00021917,2]
[329124201,1718124645360,-500.0,0.00021917,2]
[329124203,1718124645371,-500.0,0.00021917,2]
[329124205,1718124645382,-507.2712768,0.00021917,2]
[329124207,1718124645393,-500.0,0.00021917,2]
[329124209,1718124645404,-500.0,0.00021917,2]
[329124211,1718124645417,-500.0,0.00021917,2]
[329124213,1718124645431,-500.0,0.00021917,2]
[329124216,1718124645447,-500.0,0.00021917,2]
[329124218,1718124645459,-500.0,0.00021917,2]
[329124220,1718124645471,-500.0,0.00021917,2]
[329124222,1718124645488,-151.0,0.00021917,2]
[329124224,1718124645499,-500.0,0.00021917,2]
[329124226,1718124645511,-500.0,0.00021917,2]
[329124228,1718124645523,-1925.78,0.00021917,2]
[329124230,1718124645533,-500.0,0.00021917,2]
[329124232,1718124645544,-509.47569803,0.00021917,2]
[329124234,1718124645554,-500.0,0.00021917,2]
[329124236,1718124645565,-151.0,0.00021917,2]
[329124238,1718124645575,-500.0,0.00021917,2]
[329124240,1718124645587,-2274.11,0.00021917,2]
[329124242,1718124645599,-434.59632574,0.00021917,2]
[329124244,1718124645610,-234.14859837,0.00021917,2]
[329124277,1718124645621,-1233.09,0.00021917,2]
[329124280,1718124645943,-155.812296,0.00021917,2]
[329124282,1718124645953,-500.0,0.00021917,2]
[329124284,1718124645963,-369.88748987,0.00021917,2]
[329124286,1718124645977,-500.0,0.00021917,2]
[329124288,1718124645989,-500.0,0.00021917,2]
[329124290,1718124645999,-500.0,0.00021917,2]
[329124292,1718124646009,-500.0,0.00021917,2]
[329124294,1718124646019,-500.0,0.00021917,2]
[329124296,1718124646029,-500.0,0.00021917,2]
[329124298,1718124646039,-155.812296,0.00021917,2]
[329124300,1718124646050,-508.76658701,0.00021917,2]
[329124302,1718124646060,-4812.94,0.00021917,2]
[329124304,1718124646071,-822.35,0.00021917,2]
[329124306,1718124646081,-612.24,0.00021917,2]
[329124308,1718124646091,-557.89009807,0.00021917,2]
[329124310,1718124646101,-500.0,0.00021917,2]
[329124312,1718124646112,-500.0,0.00021917,2]
[329124314,1718124646122,-398.07,0.00021917,2]
[329124316,1718124646132,-500.0,0.00021917,2]
[329124318,1718124646142,-500.0,0.00021917,2]
[329124320,1718124646152,-503.18780697,0.00021917,2]
[329124322,1718124646165,-964.66,0.00021917,2]
[329124324,1718124646182,-1654.35,0.00021917,2]
[329124326,1718124646196,-500.0,0.00021917,2]
[329124328,1718124646207,-509.87812282,0.00021917,2]
[329124330,1718124646217,-522.13,0.00021917,2]
[329124332,1718124646232,-500.0,0.00021917,2]
[329124334,1718124646243,-500.0,0.00021917,2]
[329124336,1718124646253,-500.0,0.00021917,2]
[329124338,1718124646263,-1783.76,0.00021917,2]
[329124340,1718124646274,-500.0,0.00021917,2]
[329124342,1718124646285,-533.05,0.00021917,2]
[329124344,1718124646296,-500.0,0.00021917,2]
[329124346,1718124646306,-10728.96,0.00021917,2]
[329124348,1718124646316,-1138.03,0.00021917,2]
[329124350,1718124646327,-500.0,0.00021917,2]
[329124352,1718124646337,-500.0,0.00021917,2]
[329124354,1718124646348,-500.0,0.00021917,2]
[329124356,1718124646359,-151.0,0.00021917,2]
[329124358,1718124646370,-964.62,0.00021917,2]
[329124360,1718124646380,-151.0,0.00021917,2]